[Event "Late-Titled-Tuesday-Blitz-February-13-2024"]
[Site "Chess.com"]
[Date "2024.02.13"]
[Round "4"]
[White "ninguno46"]
[Black "Alblooshi_Hamad"]
[Result "1-0"]
[WhiteElo "2503"]
[BlackElo "2239"]
[TimeControl "180+1"]
[EndTime "14:37:39 PST"]
[Termination "ninguno46 won by resignation"]

1. e4 {[%clk 0:02:58.7]} 1... c5 {[%clk 0:03:00]} 2. Nc3 {[%clk 0:02:57.9]} 2...
Nc6 {[%clk 0:02:58.1]} 3. f4 {[%clk 0:02:57.9]} 3... g6 {[%clk 0:02:57.7]} 4.
Nf3 {[%clk 0:02:58.3]} 4... Bg7 {[%clk 0:02:58.3]} 5. Bb5 {[%clk 0:02:58.5]}
5... Nd4 {[%clk 0:02:58.5]} 6. O-O {[%clk 0:02:58.6]} 6... a6 {[%clk 0:02:58.2]}
7. Bc4 {[%clk 0:02:58.3]} 7... b5 {[%clk 0:02:53]} 8. Bd5 {[%clk 0:02:57.9]}
8... Ra7 {[%clk 0:02:53.7]} 9. d3 {[%clk 0:02:58.2]} 9... e6 {[%clk 0:02:52]}
10. Bb3 {[%clk 0:02:58]} 10... Ne7 {[%clk 0:02:43.1]} 11. Kh1 {[%clk 0:02:51.2]}
11... d5 {[%clk 0:02:32.9]} 12. Nxd4 {[%clk 0:02:46.1]} 12... Bxd4 {[%clk
0:02:24.9]} 13. Ne2 {[%clk 0:02:27.8]} 13... Bg7 {[%clk 0:02:22.1]} 14. c3
{[%clk 0:02:27.4]} 14... O-O {[%clk 0:02:13.3]} 15. e5 {[%clk 0:02:25]} 15... c4
{[%clk 0:02:06]} 16. Bc2 {[%clk 0:02:23.5]} 16... Bb7 {[%clk 0:02:04]} 17. d4
{[%clk 0:02:22.4]} 17... f6 {[%clk 0:01:53]} 18. exf6 {[%clk 0:02:20.5]} 18...
Bxf6 {[%clk 0:01:50.7]} 19. Ng1 {[%clk 0:02:20.2]} 19... Ra8 {[%clk 0:01:31.3]}
20. Qe2 {[%clk 0:02:19]} 20... Bc8 {[%clk 0:01:28.5]} 21. Nf3 {[%clk 0:02:18.3]}
21... Nc6 {[%clk 0:01:26.1]} 22. Bd2 {[%clk 0:02:15.9]} 22... a5 {[%clk
0:01:16.4]} 23. Rae1 {[%clk 0:02:14.8]} 23... Bd7 {[%clk 0:01:16.5]} 24. Qf2
{[%clk 0:02:06.8]} 24... Rb8 {[%clk 0:01:16.6]} 25. Qg3 {[%clk 0:02:06.5]} 25...
Bg7 {[%clk 0:01:09.1]} 26. Ng5 {[%clk 0:02:03.3]} 26... Qf6 {[%clk 0:01:04.3]}
27. h4 {[%clk 0:01:47.7]} 27... Rfe8 {[%clk 0:00:35.8]} 28. h5 {[%clk
0:01:46.8]} 28... Ne7 {[%clk 0:00:20]} 29. hxg6 {[%clk 0:01:43.7]} 29... hxg6
{[%clk 0:00:20.9]} 30. Qh3 {[%clk 0:01:42.2]} 30... Nf5 {[%clk 0:00:21.6]} 31.
Qh7+ {[%clk 0:01:37.2]} 31... Kf8 {[%clk 0:00:21.9]} 32. Qh2 {[%clk 0:01:31.1]}
32... Kg8 {[%clk 0:00:21.8]} 33. g4 {[%clk 0:01:27.2]} 33... Nh6 {[%clk
0:00:20.3]} 34. Bd1 {[%clk 0:01:25]} 34... Qf8 {[%clk 0:00:15.7]} 35. Re3 {[%clk
0:01:22.9]} 35... Bf6 {[%clk 0:00:11.4]} 36. Kg1 {[%clk 0:01:19.6]} 36... Nf7
{[%clk 0:00:09]} 37. Rh3 {[%clk 0:01:18]} 37... Nxg5 {[%clk 0:00:08.1]} 38. fxg5
{[%clk 0:01:17.7]} 38... Bg7 {[%clk 0:00:08.7]} 39. Rxf8+ {[%clk 0:01:17]} 39...
Rxf8 {[%clk 0:00:09.6]} 40. Bc2 {[%clk 0:01:16.7]} 40... Rf7 {[%clk 0:00:07.7]}
41. Bxg6 {[%clk 0:01:15.4]} 1-0

[Event "Late-Titled-Tuesday-Blitz-February-13-2024"]
[Site "Chess.com"]
[Date "2024.02.13"]
[Round "4"]
[White "Kirill_Klukin"]
[Black "Msb2"]
[Result "0-1"]
[WhiteElo "2821"]
[BlackElo "3011"]
[TimeControl "180+1"]
[EndTime "14:37:45 PST"]
[Termination "Msb2 won by resignation"]

1. d4 {[%clk 0:03:00.9]} 1... d5 {[%clk 0:03:00.2]} 2. c4 {[%clk 0:03:00.9]}
2... e6 {[%clk 0:03:00.9]} 3. Nc3 {[%clk 0:03:00.6]} 3... Bb4 {[%clk 0:03:01.6]}
4. Nf3 {[%clk 0:03:00.4]} 4... Nf6 {[%clk 0:03:01.4]} 5. Qa4+ {[%clk 0:03:00.3]}
5... Nc6 {[%clk 0:03:01.7]} 6. a3 {[%clk 0:03:00.9]} 6... Bxc3+ {[%clk
0:03:01.2]} 7. bxc3 {[%clk 0:03:01.8]} 7... Bd7 {[%clk 0:03:02]} 8. cxd5 {[%clk
0:03:01]} 8... exd5 {[%clk 0:03:02.9]} 9. Qc2 {[%clk 0:03:01.1]} 9... Na5 {[%clk
0:03:03.4]} 10. Bg5 {[%clk 0:03:01]} 10... h6 {[%clk 0:03:03.1]} 11. Bh4 {[%clk
0:03:01.3]} 11... Rc8 {[%clk 0:03:03.4]} 12. e3 {[%clk 0:02:59.2]} 12... c5
{[%clk 0:03:03.6]} 13. dxc5 {[%clk 0:02:44.4]} 13... Rxc5 {[%clk 0:03:04.5]} 14.
Bd3 {[%clk 0:02:44.8]} 14... O-O {[%clk 0:03:02.3]} 15. O-O {[%clk 0:02:44.6]}
15... Qe7 {[%clk 0:02:41.9]} 16. Nd4 {[%clk 0:02:32.9]} 16... Rfc8 {[%clk
0:02:40.5]} 17. Rac1 {[%clk 0:02:33.4]} 17... Nc4 {[%clk 0:02:32]} 18. Qa2
{[%clk 0:02:26.4]} 18... Ne5 {[%clk 0:02:20.6]} 19. Bf5 {[%clk 0:02:22.5]} 19...
Bxf5 {[%clk 0:02:09.1]} 20. Nxf5 {[%clk 0:02:23.4]} 20... Qe6 {[%clk 0:02:09.8]}
21. Nd4 {[%clk 0:02:21.5]} 21... Qa6 {[%clk 0:02:10.4]} 22. Nf5 {[%clk
0:01:49.8]} 22... Ng6 {[%clk 0:02:05.3]} 23. Bg3 {[%clk 0:01:38.5]} 23... Ne4
{[%clk 0:02:03.7]} 24. c4 {[%clk 0:01:24.1]} 24... dxc4 {[%clk 0:01:58.8]} 25.
Nd4 {[%clk 0:01:23.8]} 25... c3 {[%clk 0:01:53.8]} 26. Rfd1 {[%clk 0:01:15.4]}
26... c2 {[%clk 0:01:37.4]} 27. Re1 {[%clk 0:01:10.7]} 27... Qd3 {[%clk
0:01:37.2]} 28. Qb2 {[%clk 0:01:06.3]} 28... b6 {[%clk 0:01:32.4]} 29. a4 {[%clk
0:01:02.9]} 29... Qd2 {[%clk 0:01:13.1]} 30. f3 {[%clk 0:00:36.2]} 30... Nxg3
{[%clk 0:01:08.5]} 31. hxg3 {[%clk 0:00:37.1]} 31... Ne5 {[%clk 0:00:59.1]} 32.
Re2 {[%clk 0:00:30.7]} 32... Qd1+ {[%clk 0:00:45.5]} 33. Kh2 {[%clk 0:00:30.6]}
33... Nd3 {[%clk 0:00:33.4]} 0-1

[Event "Late-Titled-Tuesday-Blitz-February-13-2024"]
[Site "Chess.com"]
[Date "2024.02.13"]
[Round "4"]
[White "Genghis_K"]
[Black "bipe137"]
[Result "1-0"]
[WhiteElo "2911"]
[BlackElo "2590"]
[TimeControl "180+1"]
[EndTime "14:37:46 PST"]
[Termination "Genghis_K won by resignation"]

1. e4 {[%clk 0:03:00.9]} 1... c5 {[%clk 0:02:59.9]} 2. Nf3 {[%clk 0:03:01.4]}
2... e6 {[%clk 0:03:00.3]} 3. c3 {[%clk 0:03:01.7]} 3... Nf6 {[%clk 0:03:00.1]}
4. e5 {[%clk 0:03:02]} 4... Nd5 {[%clk 0:03:00.7]} 5. d4 {[%clk 0:03:02.8]} 5...
cxd4 {[%clk 0:03:01.3]} 6. cxd4 {[%clk 0:03:03.7]} 6... d6 {[%clk 0:03:01.3]} 7.
Bc4 {[%clk 0:03:04.5]} 7... Nb6 {[%clk 0:03:01.1]} 8. Bd3 {[%clk 0:03:03.1]}
8... Bd7 {[%clk 0:03:00.4]} 9. O-O {[%clk 0:03:00.2]} 9... Bc6 {[%clk
0:03:00.6]} 10. Nc3 {[%clk 0:03:00.5]} 10... N8d7 {[%clk 0:03:00.8]} 11. Bf4
{[%clk 0:02:58.1]} 11... dxe5 {[%clk 0:02:56.6]} 12. dxe5 {[%clk 0:02:57.9]}
12... Nc5 {[%clk 0:02:54.7]} 13. Be2 {[%clk 0:02:50]} 13... Qxd1 {[%clk
0:02:52.6]} 14. Rfxd1 {[%clk 0:02:50.4]} 14... Rc8 {[%clk 0:02:25.4]} 15. Nd4
{[%clk 0:02:50.1]} 15... Bd7 {[%clk 0:02:20.6]} 16. Ndb5 {[%clk 0:02:35.3]}
16... a6 {[%clk 0:02:20.6]} 17. Nd6+ {[%clk 0:02:35.8]} 17... Bxd6 {[%clk
0:02:20.7]} 18. Rxd6 {[%clk 0:02:36.3]} 18... Bc6 {[%clk 0:02:16.7]} 19. Be3
{[%clk 0:02:32.9]} 19... Ncd7 {[%clk 0:02:14]} 20. Rad1 {[%clk 0:02:29.4]} 20...
Nd5 {[%clk 0:02:12]} 21. Nxd5 {[%clk 0:02:20.5]} 21... Bxd5 {[%clk 0:02:11.6]}
22. f4 {[%clk 0:02:14.1]} 22... Rc6 {[%clk 0:02:01.1]} 23. Rxc6 {[%clk
0:02:05.6]} 23... Bxc6 {[%clk 0:02:02]} 24. Rc1 {[%clk 0:02:03.7]} 24... Nb8
{[%clk 0:01:39.1]} 25. Bb6 {[%clk 0:01:36.5]} 25... Kd7 {[%clk 0:01:31.3]} 26.
Rd1+ {[%clk 0:01:35.7]} 26... Kc8 {[%clk 0:01:31.4]} 27. Kf2 {[%clk 0:01:34]}
27... Nd7 {[%clk 0:01:31]} 28. Ba5 {[%clk 0:01:33]} 28... Bd5 {[%clk 0:01:02.4]}
29. a3 {[%clk 0:01:30.8]} 29... Nb8 {[%clk 0:00:56.9]} 30. g3 {[%clk 0:01:27]}
30... Nc6 {[%clk 0:00:57.3]} 31. Bb6 {[%clk 0:01:27]} 31... Kb8 {[%clk
0:00:57.7]} 32. Ke3 {[%clk 0:01:27]} 32... Rc8 {[%clk 0:00:54.6]} 33. h4 {[%clk
0:01:26.5]} 33... Ne7 {[%clk 0:00:54.1]} 34. g4 {[%clk 0:01:24.7]} 34... Rc2
{[%clk 0:00:47.5]} 35. Rd2 {[%clk 0:01:21.3]} 35... Rc1 {[%clk 0:00:47.1]} 36.
h5 {[%clk 0:01:19.6]} 36... Nc8 {[%clk 0:00:40.2]} 37. Bd4 {[%clk 0:01:17.5]}
37... Ne7 {[%clk 0:00:39.6]} 38. Bb6 {[%clk 0:01:05.7]} 38... Nc8 {[%clk
0:00:39.6]} 39. Ba5 {[%clk 0:01:05.8]} 39... Ne7 {[%clk 0:00:37.9]} 40. Bb4
{[%clk 0:01:05.1]} 40... Nc6 {[%clk 0:00:34.8]} 41. Bd6+ {[%clk 0:01:05.7]}
41... Ka7 {[%clk 0:00:34.3]} 42. Bd3 {[%clk 0:01:05.8]} 42... g6 {[%clk
0:00:31.6]} 43. hxg6 {[%clk 0:00:57]} 43... hxg6 {[%clk 0:00:31]} 44. Rh2 {[%clk
0:00:57.5]} 44... Re1+ {[%clk 0:00:28.5]} 45. Kd2 {[%clk 0:00:56.6]} 45... Rg1
{[%clk 0:00:26.7]} 46. Bc5+ {[%clk 0:00:56.5]} 1-0

[Event "Late-Titled-Tuesday-Blitz-February-13-2024"]
[Site "Chess.com"]
[Date "2024.02.13"]
[Round "4"]
[White "GoldenShare"]
[Black "chenxiaoyuer"]
[Result "1-0"]
[WhiteElo "2554"]
[BlackElo "2745"]
[TimeControl "180+1"]
[EndTime "14:37:50 PST"]
[Termination "GoldenShare won by checkmate"]

1. e4 {[%clk 0:03:00.9]} 1... c5 {[%clk 0:02:59.4]} 2. Nc3 {[%clk 0:03:01.2]}
2... d6 {[%clk 0:02:55.3]} 3. d4 {[%clk 0:03:00.4]} 3... cxd4 {[%clk 0:02:56.2]}
4. Qxd4 {[%clk 0:03:00.9]} 4... Nc6 {[%clk 0:02:48.6]} 5. Qd2 {[%clk 0:03:00.5]}
5... g6 {[%clk 0:02:39]} 6. b3 {[%clk 0:03:00.6]} 6... Bh6 {[%clk 0:02:38.9]} 7.
f4 {[%clk 0:03:01]} 7... Nf6 {[%clk 0:02:38.9]} 8. Bb2 {[%clk 0:03:00.6]} 8...
O-O {[%clk 0:02:36.1]} 9. O-O-O {[%clk 0:03:00.4]} 9... e5 {[%clk 0:02:35.6]}
10. g3 {[%clk 0:03:00.7]} 10... Nh5 {[%clk 0:02:25.6]} 11. Kb1 {[%clk 0:02:49]}
11... exf4 {[%clk 0:02:19.3]} 12. Nd5 {[%clk 0:02:49.3]} 12... Bg4 {[%clk
0:01:53.9]} 13. Be2 {[%clk 0:02:42.3]} 13... Qd7 {[%clk 0:01:42.6]} 14. h3
{[%clk 0:02:30.5]} 14... Bxe2 {[%clk 0:01:38.6]} 15. Nxe2 {[%clk 0:02:31.4]}
15... Bg7 {[%clk 0:01:32.9]} 16. Bxg7 {[%clk 0:02:16.8]} 16... Kxg7 {[%clk
0:01:33.8]} 17. Nexf4 {[%clk 0:02:01.7]} 17... Nxf4 {[%clk 0:01:32.6]} 18. gxf4
{[%clk 0:02:02.6]} 18... Ne7 {[%clk 0:01:29.2]} 19. f5 {[%clk 0:01:22.3]} 19...
Nxd5 {[%clk 0:01:26]} 20. Qxd5 {[%clk 0:01:22.8]} 20... Rae8 {[%clk 0:01:20.8]}
21. h4 {[%clk 0:01:21.5]} 21... Qe7 {[%clk 0:01:16.2]} 22. Rde1 {[%clk
0:00:52.7]} 22... Qe5 {[%clk 0:01:15.4]} 23. Qxb7 {[%clk 0:00:50.2]} 23... d5
{[%clk 0:01:05.6]} 24. fxg6 {[%clk 0:00:44.7]} 24... hxg6 {[%clk 0:01:04.3]} 25.
h5 {[%clk 0:00:43.8]} 25... g5 {[%clk 0:01:03.5]} 26. h6+ {[%clk 0:00:43.8]}
26... Kh7 {[%clk 0:00:59.5]} 27. exd5 {[%clk 0:00:36.9]} 27... Qxe1+ {[%clk
0:00:58.2]} 28. Rxe1 {[%clk 0:00:37.8]} 28... Rxe1+ {[%clk 0:00:58.2]} 29. Kb2
{[%clk 0:00:38.7]} 29... g4 {[%clk 0:00:59]} 30. Qb4 {[%clk 0:00:37.3]} 30...
Rfe8 {[%clk 0:00:53.7]} 31. Qxg4 {[%clk 0:00:35.5]} 31... Kxh6 {[%clk
0:00:54.6]} 32. d6 {[%clk 0:00:34.1]} 32... R8e6 {[%clk 0:00:45]} 33. d7 {[%clk
0:00:30.6]} 33... Rd6 {[%clk 0:00:45.2]} 34. Qf4+ {[%clk 0:00:28.2]} 34... Kh7
{[%clk 0:00:44.7]} 35. Qxd6 {[%clk 0:00:29.1]} 35... Re6 {[%clk 0:00:44]} 36.
Qxe6 {[%clk 0:00:29.1]} 36... fxe6 {[%clk 0:00:41.9]} 37. d8=Q {[%clk 0:00:30]}
37... e5 {[%clk 0:00:42]} 38. Qe7+ {[%clk 0:00:30.2]} 38... Kg6 {[%clk
0:00:40.6]} 39. Qxe5 {[%clk 0:00:29.5]} 39... Kf7 {[%clk 0:00:41.5]} 40. c4
{[%clk 0:00:29.9]} 40... Kg8 {[%clk 0:00:42.4]} 41. c5 {[%clk 0:00:30.8]} 41...
Kh7 {[%clk 0:00:43]} 42. c6 {[%clk 0:00:31.7]} 42... Kg6 {[%clk 0:00:43.2]} 43.
c7 {[%clk 0:00:32.6]} 43... Kh6 {[%clk 0:00:41.9]} 44. c8=Q {[%clk 0:00:33.5]}
44... Kh7 {[%clk 0:00:41.8]} 45. Qce6 {[%clk 0:00:33.6]} 45... a6 {[%clk
0:00:40.9]} 46. Q5d6 {[%clk 0:00:34.5]} 46... a5 {[%clk 0:00:38.9]} 47. Qdd7+
{[%clk 0:00:35.4]} 47... Kh8 {[%clk 0:00:37.6]} 48. Qee8# {[%clk 0:00:36.3]} 1-0

[Event "Late-Titled-Tuesday-Blitz-February-13-2024"]
[Site "Chess.com"]
[Date "2024.02.13"]
[Round "4"]
[White "Agibileg"]
[Black "rdarruda"]
[Result "1-0"]
[WhiteElo "2732"]
[BlackElo "2537"]
[TimeControl "180+1"]
[EndTime "14:37:51 PST"]
[Termination "Agibileg won on time"]

1. d4 {[%clk 0:03:00.9]} 1... Nf6 {[%clk 0:02:59]} 2. c4 {[%clk 0:03:01.1]} 2...
e5 {[%clk 0:02:59.2]} 3. dxe5 {[%clk 0:03:00.2]} 3... Ne4 {[%clk 0:02:59.2]} 4.
Nc3 {[%clk 0:02:54.4]} 4... Nxc3 {[%clk 0:02:57.6]} 5. bxc3 {[%clk 0:02:53.9]}
5... Nc6 {[%clk 0:02:57.8]} 6. f4 {[%clk 0:02:50.9]} 6... d6 {[%clk 0:02:57.5]}
7. exd6 {[%clk 0:02:50]} 7... Bxd6 {[%clk 0:02:57.1]} 8. e4 {[%clk 0:02:49.3]}
8... O-O {[%clk 0:02:56.8]} 9. Be3 {[%clk 0:02:47.9]} 9... Qe7 {[%clk
0:02:54.6]} 10. Bd3 {[%clk 0:02:44.5]} 10... Rd8 {[%clk 0:02:49]} 11. Qe2 {[%clk
0:02:40.6]} 11... Bc5 {[%clk 0:02:47.9]} 12. Nf3 {[%clk 0:02:37.7]} 12... Bg4
{[%clk 0:02:46.5]} 13. O-O {[%clk 0:02:35.8]} 13... Rd7 {[%clk 0:02:42.5]} 14.
h3 {[%clk 0:02:33.1]} 14... Bxf3 {[%clk 0:02:41.8]} 15. Rxf3 {[%clk 0:02:32.2]}
15... Rad8 {[%clk 0:02:40.8]} 16. Bxc5 {[%clk 0:02:25.9]} 16... Qxc5+ {[%clk
0:02:41.7]} 17. Kh2 {[%clk 0:02:25.2]} 17... f6 {[%clk 0:02:30.2]} 18. Re1
{[%clk 0:02:21.8]} 18... Re7 {[%clk 0:02:27.7]} 19. Re3 {[%clk 0:01:24.1]} 19...
Rde8 {[%clk 0:02:23.9]} 20. Bc2 {[%clk 0:01:21]} 20... g6 {[%clk 0:02:23]} 21.
Ba4 {[%clk 0:01:19.9]} 21... Kg7 {[%clk 0:02:19.7]} 22. e5 {[%clk 0:01:18.6]}
22... fxe5 {[%clk 0:02:12.2]} 23. Bxc6 {[%clk 0:01:17.7]} 23... Qxc6 {[%clk
0:02:05.7]} 24. fxe5 {[%clk 0:01:17.4]} 24... Qe6 {[%clk 0:02:00.7]} 25. Rf1
{[%clk 0:01:15.7]} 25... Rf8 {[%clk 0:01:59.4]} 26. Rxf8 {[%clk 0:01:14.7]}
26... Kxf8 {[%clk 0:02:00.3]} 27. Qf3+ {[%clk 0:01:14.6]} 27... Kg7 {[%clk
0:01:56.4]} 28. Qxb7 {[%clk 0:01:11.1]} 28... Qxc4 {[%clk 0:01:55.7]} 29. Qf3
{[%clk 0:01:01.6]} 29... Rf7 {[%clk 0:01:44.9]} 30. Qg3 {[%clk 0:00:56.1]} 30...
Qxa2 {[%clk 0:01:43.2]} 31. e6 {[%clk 0:00:55.2]} 31... Re7 {[%clk 0:01:43.7]}
32. Qe5+ {[%clk 0:00:55]} 32... Kh6 {[%clk 0:01:42.2]} 33. Re4 {[%clk
0:00:52.5]} 1-0

[Event "Late-Titled-Tuesday-Blitz-February-13-2024"]
[Site "Chess.com"]
[Date "2024.02.13"]
[Round "4"]
[White "laskakid"]
[Black "nindjaxx8"]
[Result "1-0"]
[WhiteElo "2406"]
[BlackElo "2564"]
[TimeControl "180+1"]
[EndTime "14:37:52 PST"]
[Termination "laskakid won by checkmate"]

1. d4 {[%clk 0:03:00.9]} 1... d5 {[%clk 0:02:58]} 2. c4 {[%clk 0:03:01]} 2... e6
{[%clk 0:02:57.1]} 3. Nc3 {[%clk 0:03:01.2]} 3... Nf6 {[%clk 0:02:54.3]} 4. Bg5
{[%clk 0:03:01.2]} 4... Be7 {[%clk 0:02:53.5]} 5. Nf3 {[%clk 0:03:01.5]} 5...
O-O {[%clk 0:02:52.5]} 6. e3 {[%clk 0:03:01.5]} 6... h6 {[%clk 0:02:47.6]} 7.
Bxf6 {[%clk 0:03:01.3]} 7... Bxf6 {[%clk 0:02:48.5]} 8. Rc1 {[%clk 0:03:01.3]}
8... b6 {[%clk 0:02:40]} 9. cxd5 {[%clk 0:03:00.2]} 9... exd5 {[%clk 0:02:39.6]}
10. Bd3 {[%clk 0:02:59.8]} 10... Bb7 {[%clk 0:02:40.2]} 11. O-O {[%clk
0:02:54.5]} 11... Nd7 {[%clk 0:02:39]} 12. Bb1 {[%clk 0:02:40.5]} 12... c5
{[%clk 0:02:28]} 13. dxc5 {[%clk 0:02:34.1]} 13... Nxc5 {[%clk 0:02:28.9]} 14.
Nd4 {[%clk 0:02:33.8]} 14... Ne4 {[%clk 0:02:26.6]} 15. Qg4 {[%clk 0:01:47.9]}
15... Nxc3 {[%clk 0:02:14.7]} 16. Rxc3 {[%clk 0:01:42.5]} 16... Rc8 {[%clk
0:02:13.8]} 17. Rfc1 {[%clk 0:01:36.5]} 17... Rxc3 {[%clk 0:02:06.4]} 18. Rxc3
{[%clk 0:01:36.7]} 18... Qe7 {[%clk 0:02:03.5]} 19. Nf5 {[%clk 0:01:22.9]} 19...
Qe6 {[%clk 0:01:32.5]} 20. Nxh6+ {[%clk 0:01:15.5]} 20... Kh8 {[%clk 0:01:32.5]}
21. Bf5 {[%clk 0:00:53]} 21... Qe7 {[%clk 0:00:09.6]} 22. Qh5 {[%clk 0:00:32.3]}
22... Re8 {[%clk 0:00:02.1]} 23. Ng4+ {[%clk 0:00:24.2]} 23... Kg8 {[%clk
0:00:01.3]} 24. Qh7+ {[%clk 0:00:24.3]} 24... Kf8 {[%clk 0:00:02.2]} 25. Qh8#
{[%clk 0:00:24.6]} 1-0

[Event "Late-Titled-Tuesday-Blitz-February-13-2024"]
[Site "Chess.com"]
[Date "2024.02.13"]
[Round "4"]
[White "jup1978"]
[Black "GMKrikor"]
[Result "0-1"]
[WhiteElo "2566"]
[BlackElo "2840"]
[TimeControl "180+1"]
[EndTime "14:37:54 PST"]
[Termination "GMKrikor won on time"]

1. d4 {[%clk 0:03:00.9]} 1... Nf6 {[%clk 0:02:59.5]} 2. Nf3 {[%clk 0:02:58.9]}
2... g6 {[%clk 0:02:59.5]} 3. g3 {[%clk 0:02:57.8]} 3... d5 {[%clk 0:02:58]} 4.
Bg2 {[%clk 0:02:58.7]} 4... Bg7 {[%clk 0:02:58.4]} 5. O-O {[%clk 0:02:56.2]}
5... O-O {[%clk 0:02:58.4]} 6. c4 {[%clk 0:02:54.7]} 6... dxc4 {[%clk
0:02:57.4]} 7. Na3 {[%clk 0:02:49.6]} 7... c3 {[%clk 0:02:57.3]} 8. bxc3 {[%clk
0:02:48.6]} 8... c5 {[%clk 0:02:57.9]} 9. e3 {[%clk 0:02:33.8]} 9... Nc6 {[%clk
0:02:57.6]} 10. Nc4 {[%clk 0:02:30.5]} 10... Be6 {[%clk 0:02:49.1]} 11. Nce5
{[%clk 0:02:28.6]} 11... Nd5 {[%clk 0:02:47.8]} 12. Nxc6 {[%clk 0:02:16.3]}
12... bxc6 {[%clk 0:02:48.7]} 13. Qc2 {[%clk 0:02:04.9]} 13... Qa5 {[%clk
0:02:30.2]} 14. Bd2 {[%clk 0:02:00.1]} 14... Qa6 {[%clk 0:02:26.3]} 15. Rfb1
{[%clk 0:01:51.2]} 15... Qc8 {[%clk 0:02:07.9]} 16. e4 {[%clk 0:01:48.7]} 16...
Nb6 {[%clk 0:02:05]} 17. a4 {[%clk 0:01:33.8]} 17... Bg4 {[%clk 0:02:01.7]} 18.
Be3 {[%clk 0:01:14.8]} 18... Nc4 {[%clk 0:01:59.9]} 19. Qd3 {[%clk 0:01:06]}
19... Nxe3 {[%clk 0:01:59.3]} 20. Qxe3 {[%clk 0:01:06.9]} 20... cxd4 {[%clk
0:01:59.8]} 21. cxd4 {[%clk 0:01:05]} 21... c5 {[%clk 0:02:00.5]} 22. e5 {[%clk
0:00:53.1]} 22... Rb8 {[%clk 0:01:52]} 23. Rxb8 {[%clk 0:00:47.6]} 23... Qxb8
{[%clk 0:01:52.9]} 24. dxc5 {[%clk 0:00:45.4]} 24... Rc8 {[%clk 0:01:44.5]} 25.
Rc1 {[%clk 0:00:43.8]} 25... Bd7 {[%clk 0:01:43]} 26. Nd4 {[%clk 0:00:36.4]}
26... Bxa4 {[%clk 0:01:42.7]} 27. e6 {[%clk 0:00:32.6]} 27... f5 {[%clk
0:01:40.9]} 28. c6 {[%clk 0:00:26.9]} 28... Qb6 {[%clk 0:01:41.1]} 29. Nf3
{[%clk 0:00:20.5]} 29... Qxe3 {[%clk 0:01:37.4]} 30. fxe3 {[%clk 0:00:21.4]}
30... Rxc6 {[%clk 0:01:17.4]} 31. Rb1 {[%clk 0:00:20]} 31... Rb6 {[%clk
0:01:14.8]} 32. Rc1 {[%clk 0:00:16.2]} 32... Bf6 {[%clk 0:01:00.1]} 33. Rc8+
{[%clk 0:00:11]} 33... Kg7 {[%clk 0:01:00.4]} 34. Nd4 {[%clk 0:00:09.8]} 34...
Bg5 {[%clk 0:00:48.2]} 35. Kf2 {[%clk 0:00:09.2]} 35... Rb2+ {[%clk 0:00:48.8]}
36. Kf3 {[%clk 0:00:08.7]} 36... Bd1+ {[%clk 0:00:49.5]} 0-1

[Event "Late-Titled-Tuesday-Blitz-February-13-2024"]
[Site "Chess.com"]
[Date "2024.02.13"]
[Round "4"]
[White "ansko1999"]
[Black "VladimirBugayev"]
[Result "1-0"]
[WhiteElo "2634"]
[BlackElo "2392"]
[TimeControl "180+1"]
[EndTime "14:37:54 PST"]
[Termination "ansko1999 won by checkmate"]

1. Nf3 {[%clk 0:03:00.9]} 1... c5 {[%clk 0:02:59.1]} 2. e3 {[%clk 0:03:01]} 2...
g6 {[%clk 0:02:58.1]} 3. c4 {[%clk 0:02:59.7]} 3... Bg7 {[%clk 0:02:57.6]} 4.
Nc3 {[%clk 0:02:59.6]} 4... Nf6 {[%clk 0:02:55.2]} 5. d4 {[%clk 0:02:55]} 5...
O-O {[%clk 0:02:54.9]} 6. d5 {[%clk 0:02:54.5]} 6... d6 {[%clk 0:02:49.3]} 7.
Be2 {[%clk 0:02:52]} 7... a6 {[%clk 0:02:45.5]} 8. O-O {[%clk 0:02:51.7]} 8...
b5 {[%clk 0:02:41.5]} 9. cxb5 {[%clk 0:02:52.6]} 9... axb5 {[%clk 0:02:40.4]}
10. Bxb5 {[%clk 0:02:52.6]} 10... Na6 {[%clk 0:02:37.3]} 11. a4 {[%clk
0:02:41.5]} 11... Nc7 {[%clk 0:02:34.8]} 12. Bc6 {[%clk 0:02:40.2]} 12... Rb8
{[%clk 0:02:33.3]} 13. Nb5 {[%clk 0:02:34.8]} 13... Ba6 {[%clk 0:02:20.6]} 14.
Qb3 {[%clk 0:02:17.2]} 14... Bb7 {[%clk 0:01:39.8]} 15. Rd1 {[%clk 0:01:08.9]}
15... e6 {[%clk 0:01:23.5]} 16. Bxb7 {[%clk 0:01:02.9]} 16... Rxb7 {[%clk
0:01:23.3]} 17. dxe6 {[%clk 0:01:03.4]} 17... fxe6 {[%clk 0:01:11.1]} 18. Bd2
{[%clk 0:00:57.7]} 18... Ne4 {[%clk 0:00:51.9]} 19. Ba5 {[%clk 0:00:50.4]} 19...
Qb8 {[%clk 0:00:41.5]} 20. Bxc7 {[%clk 0:00:43.5]} 20... Rxc7 {[%clk 0:00:41.3]}
21. Qxe6+ {[%clk 0:00:43.3]} 21... Rcf7 {[%clk 0:00:41.5]} 22. Qxe4 {[%clk
0:00:42.8]} 22... Bxb2 {[%clk 0:00:15.1]} 23. Rab1 {[%clk 0:00:42.4]} 23... Be5
{[%clk 0:00:15.4]} 24. Nxd6 {[%clk 0:00:36.2]} 24... Bxh2+ {[%clk 0:00:15]} 25.
Kxh2 {[%clk 0:00:32.8]} 25... Qc7 {[%clk 0:00:13.9]} 26. Rb7 {[%clk 0:00:30]}
26... Qd8 {[%clk 0:00:09.9]} 27. Nxf7 {[%clk 0:00:22.9]} 27... Qxd1 {[%clk
0:00:09.8]} 28. Nh6+ {[%clk 0:00:23.5]} 28... Kh8 {[%clk 0:00:09]} 29. Qe5+
{[%clk 0:00:24]} 29... Rf6 {[%clk 0:00:07]} 30. Qxf6# {[%clk 0:00:24.7]} 1-0